Cogmind - Beta 14 @@@ ROGUE MODE // 2024.08.13 @ 23:01:39 Player: noob Result: Destroyed by G-47 Trooper with Particle Gun Performance ------------- Evolutions (2) 1000 Regions Visited (3) 600 Robots Destroyed (35) 175 Value Destroyed (1202) 1202 Prototype IDs (1) 20 Alien Tech Used (0) 0 Bonus (44) 44 TOTAL SCORE: 3041 Bonus ------- High Alert Combat Kills 44 Cogmind --------- Core Integrity 0/550 Matter 285/300 Energy 155/160 System Corruption 0% Temperature Cool (9) Movement Core (250) Ox4 Location -8/Materials Parts ------- > --- POWER (1) -------- Light Nuclear Core > --- PROPULSION (4) --- (None) > --- UTILITY (4) ------ Medium Storage Unit Improved Melee Analysis Suite > --- WEAPON (2) ------- (None) > --- INVENTORY (10) --- Improved Ion Engine Improved Ion Engine Light Treads Sensor Array Improved Melee Analysis Suite Mini Grenade Launcher Improved Grenade Launcher Peak State ------------ > --- POWER ------------ Light Nuclear Core > --- PROPULSION ------- Aluminum Leg Aluminum Leg Aluminum Leg > --- UTILITY ---------- Medium Storage Unit Improved Melee Analysis Suite Improved Melee Analysis Suite Hardened Light Armor Plating > --- WEAPON ----------- Heavy Assault Rifle Axe > --- INVENTORY -------- Light Ion Engine Improved Ion Engine Sensor Array Improved Melee Analysis Suite Improved Melee Analysis Suite Hardened Light Armor Plating Hardened Light Armor Plating Mini Grenade Launcher Improved Grenade Launcher [Rating: 24] Favorites ----------- Power Improved Ion Engine Engine Improved Ion Engine Power Core Light Nuclear Core Propulsion Aluminum Leg Leg Aluminum Leg Utility Small Storage Unit Device Sensor Array Storage Small Storage Unit Processor Improved Melee Analysis Suite Protection Power Shielding Weapon Shotgun Energy Gun Small Laser Ballistic Gun Shotgun Launcher Improved Grenade Launcher Special Weapon Welding Torch Slashing Weapon Axe Build | -11 -10 -9 -8 ------- Run | Yrd Mat Mat Mat Slots Evolved 4 | . . 2 2 Power . | . . . . Propulsion 2 | . . 1 1 Utility 2 | . . 1 1 Weapon . | . . . . Parts Attached 49 | 7 8 12 22 Power 12 | 2 3 2 5 Engine 8 | 2 2 1 3 Core 4 | . 1 1 2 Reactor . | . . . . Propulsion 10 | 2 2 4 2 Treads . | . . . . Leg 10 | 2 2 4 2 Wheel . | . . . . Hover . | . . . . Flight . | . . . . Utility 12 | 1 1 3 7 Device 1 | . . 1 . Storage 2 | 1 . . 1 Processor 3 | . . . 3 Hackware . | . . . . Protection 6 | . 1 2 3 Artifact . | . . . . Weapon 15 | 2 2 3 8 Energy Gun 2 | 1 . . 1 Energy Cannon . | . . . . Ballistic Gun 8 | 1 2 3 2 Ballistic Cannon . | . . . . Launcher 2 | . . . 2 Special Weapon 1 | . . . 1 Impact Weapon . | . . . . Slashing Weapon 2 | . . . 2 Piercing Weapon . | . . . . Special Melee Weapon . | . . . . Unidentified Prototypes . | . . . . Parts Lost 19 | . . 1 18 Power 3 | . . . 3 Propulsion 6 | . . 1 5 Utility 5 | . . . 5 Weapon 5 | . . . 5 Highest Loss Streak 12 | . . 1 12 To Critical Strikes . | . . . . Average Slot Usage (%) 89 | . 97 97 71 Engine 8 | . 14 6 5 Core 2 | . . 4 2 Leg 26 | . 28 31 18 Device 1 | . . 1 4 Storage 11 | . 14 11 9 Processor 1 | . . . 5 Protection 15 | . 12 20 12 Ballistic Gun 18 | . 25 21 8 Slashing Weapon 1 | . . . 4 Peak Build Rating 24 | 6 11 15 24 Average Rating 12 | 3 8 13 15 On Entrance 7 | . 6 10 13 Naked Turns . | . . . . Heaviest Build 32 | 13 17 24 32 Greatest Support 30 | 20 20 30 30 Greatest Overweight (x) 7 | . . 1 7 Average Overweight (x) . | . . . 1 Largest Inventory Capacity 10 | 8 8 8 10 Average Capacity 8 | 6 8 8 9 Most Carried 10 | 5 8 8 10 Average Carried 7 | 2 5 7 8 Final Capacity 10 | 8 8 8 10 Final Carried 8 | 2 8 7 7 Class Distribution -------------------- 83% | Mutant 16% | Scavenger-Mutant Dominant Class ---------------- Mutant | -10/Materials Mutant | -9/Materials Mutant | -8/Materials Resources | -11 -10 -9 -8 ----------- Run | Yrd Mat Mat Mat Matter Collected 1040 | 182 128 484 246 Remotely . | . . . . Salvage Created 1149 | . 140 479 530 Parts 70 | . 11 37 22 Haulers Intercepted . | . . . . Recyclers Shooed . | . . . . Parts Field Recycled . | . . . . Retrieved Matter . | . . . . Parts Self-Destructed . | . . . . Prevented . | . . . . Kills | -11 -10 -9 -8 ------- Run | Yrd Mat Mat Mat Combat Hostiles Destroyed 34 | . 6 14 14 Melee 6 | . . . 6 Guns 23 | . 6 14 3 AOE 5 | . . . 5 Classes Destroyed 6 | . 2 2 2 Watcher 1 | . . 1 . Swarmer 10 | . 3 7 . Grunt 12 | . 3 1 8 Brawler 1 | . . . 1 Sentry 10 | . . 6 4 Hunter 1 | . . . 1 Best Kill Streak 5 | . 4 5 5 Combat Bots Only 5 | . 4 5 5 Max Kills in Single Turn 2 | . 1 1 2 Gunslinging . | . . . . Exploded 2 | . . . 2 Melee 1 | . . . 1 Uniques/NPCs Destroyed . | . . . . Combat | -11 -10 -9 -8 -------- Run | Yrd Mat Mat Mat Hostile Shots Fired 325 | . 53 70 202 Missed 76 | . 14 15 47 Damage Taken 3250 | . 399 734 2117 Core 750 | . 102 94 554 Absorbed by Shields . | . . . . Redirected to Shielding 24 | . 12 12 . Regen/Repaired (Parts) 47 | . . 47 . Core Remaining (%) 78 | 100 59 76 . Volleys Fired 71 | . 15 30 26 Largest 2 | . 2 2 2 Hottest 88 | . 46 46 88 Shots Fired 122 | . 30 60 32 Gun 116 | . 30 60 26 Cannon . | . . . . Launcher 5 | . . . 5 Special 1 | . . . 1 Kinetic 100 | . 30 60 10 Thermal 17 | . . . 17 Explosive 5 | . . . 5 Electromagnetic . | . . . . Robot Hit Streak 7 | . 4 7 6 Robot Miss Streak 5 | . 5 3 1 Penetration Max . | . . . . Secondary Targets 2 | . . 1 1 Max Gunslinging Chain 1 | . . 1 1 Shots Hit Robots 110 | . 20 44 46 Core Hits 64 | . 11 25 28 Critical Kills 1 | . . 1 . Critical Parts Destroyed . | . . . . Critical Strikes 1 | . . 1 . Destroy 1 | . . 1 . Melee Attacks 26 | . . . 26 Impact . | . . . . Slashing 26 | . . . 26 Piercing . | . . . . Sneak Attacks 1 | . . . 1 Combat Hostiles . | . . . . Follow-up Attacks . | . . . . Damage Inflicted 2755 | . 260 669 1826 Guns 1243 | . 260 669 314 Cannons . | . . . . Explosions 644 | . . . 644 Melee 858 | . . . 858 Ramming 10 | . . . 10 Kinetic 1045 | . 260 669 116 Thermal 198 | . . . 198 Explosive 644 | . . . 644 Electromagnetic . | . . . . Impact . | . . . . Slashing 858 | . . . 858 Piercing . | . . . . Highest Corruption . | . . . . Average Corruption . | . . . . Corruption Purged . | . . . . Corruption Blocked . | . . . . Overload Shots . | . . . . Overflow Damage 34 | . . . 34 Projectiles . | . . . . Explosions . | . . . . Melee 34 | . . . 34 Knockbacks . | . . . . Impact . | . . . . Kinetic . | . . . . Secondary . | . . . . Self-Inflicted Damage . | . . . . Shots . | . . . . Rammed 5 | . . . 5 Targets Rammed 13 | . . . 13 Kicked 8 | . . . 8 Crushed . | . . . . Highest Temperature 72 | . 9 23 72 Average Temperature 11 | . 3 10 14 Received Heat Transfer 1056 | . 129 180 747 Siege Activations . | . . . . Robots Corrupted . | . . . . Combat Hostiles . | . . . . Parts Fried . | . . . . Impact Corruptions . | . . . . Robots Melted . | . . . . Combat Hostiles . | . . . . Parts Melted . | . . . . Heat Transferred 518 | . . . 518 Parts Sabotaged . | . . . . Parts Stolen . | . . . . Parts Stripped . | . . . . Power Chain Reactions . | . . . . Alert | -11 -10 -9 -8 ------- Run | Yrd Mat Mat Mat Peak Influence 500 | . 195 380 500 Initial 122 | . . 18 122 Average 184 | . 82 225 250 Maximum Alert Level 2 | . . 1 2 Low Security (%) 58 | 100 100 32 45 Level 1 34 | . . 67 32 Level 2 6 | . . . 22 Level 3 . | . . . . Level 4 . | . . . . Level 5 . | . . . . High Security . | . . . . Max Security . | . . . . Squads Dispatched 9 | . 1 2 6 Investigation . | . . . . Extermination . | . . . . Reinforcement 4 | . 1 2 1 Assault . | . . . . Garrison 5 | . . . 5 Intercept . | . . . . Searches Triggered . | . . . . Construction Impeded 1 | . . . 1 Haulers Reinforced . | . . . . Active Scanning Responses . | . . . . Cargo Convoy Interrupts . | . . . . Stealth | -11 -10 -9 -8 --------- Run | Yrd Mat Mat Mat Distress Signals 3 | . 1 . 2 Communications Jammed . | . . . . Distress Signals . | . . . . Times Spotted 53 | . 15 19 19 Peak Tracking Total 7 | . 7 4 5 Tactical Retreats 3 | . 2 . 1 Traps | -11 -10 -9 -8 ------- Run | Yrd Mat Mat Mat Traps Triggered . | . . . . Indirectly . | . . . . Trap Hack Attempts . | . . . . Triggered . | . . . . Disarmed . | . . . . Reprogrammed . | . . . . Reused . | . . . . Traps Extracted . | . . . . Installed . | . . . . Triggered . | . . . . Machines | -11 -10 -9 -8 ---------- Run | Yrd Mat Mat Mat Machines Disabled 2 | . . . 2 Max in Single Turn 1 | . . . 1 Machines Repaired . | . . . . Machines Dismantled . | . . . . Machines Sabotaged . | . . . . Overloaded Fab Kills . | . . . . Hacking | -11 -10 -9 -8 --------- Run | Yrd Mat Mat Mat Machines Accessed 3 | . 1 2 . Terminals 1 | . 1 . . Fabricators . | . . . . Repair Stations 1 | . . 1 . Recycling Units . | . . . . Scanalyzers 1 | . . 1 . Garrison Access . | . . . . Total Hacks 9 | . 3 6 . Successful 6 | . . 6 . Failed 3 | . 3 . . Catastrophic . | . . . . Database Lockouts . | . . . . Manual . | . . . . Terminals 3 | . 3 . . Fabricators . | . . . . Repair Stations 2 | . . 2 . Recycling Units . | . . . . Scanalyzers 4 | . . 4 . Garrison Access . | . . . . Terminal Hacks . | . . . . Fabricator Hacks . | . . . . Repair Station Hacks 2 | . . 2 . Scan Component 1 | . . 1 . Repair 1 | . . 1 . Recycling Unit Hacks . | . . . . Scanalyzer 4 | . . 4 . Insert Component 2 | . . 2 . Analyze 2 | . . 2 . Garrison Access Hacks . | . . . . Unauthorized Hacks . | . . . . Terminals . | . . . . Fabricators . | . . . . Repair Stations . | . . . . Recycling Units . | . . . . Scanalyzers . | . . . . Garrison Access . | . . . . Data Cores Recovered . | . . . . Used . | . . . . Hacking Detections 2 | . 1 1 . Full Trace Events . | . . . . Feedback Events . | . . . . Feedback Blocked . | . . . . Robot Schematics Acquired . | . . . . Robots Built . | . . . . Authchips . | . . . . Time . | . . . . Total Robot Build Rating . | . . . . Part Schematics Acquired 2 | . . 2 . Parts Built . | . . . . Authchips . | . . . . Time . | . . . . Total Part Build Rating . | . . . . Parts Repaired 1 | . . 1 . Time 26 | . . 26 . Parts Recycled . | . . . . Recycled Matter . | . . . . Retrieved Matter . | . . . . Retrieved Components . | . . . . Parts Scanalyzed 2 | . . 2 . Part Schematics Acquired 2 | . . 2 . Parts Damaged . | . . . . Bothacking | -11 -10 -9 -8 ------------ Run | Yrd Mat Mat Mat Used RIF Installer . | . . . . Robots Hacked . | . . . . Non-combat . | . . . . Combat . | . . . . Robot Hacks Applied . | . . . . Relay Couplers Released . | . . . . Fabnet Peak Effective % . | . . . . Robots Rewired . | . . . . Allies Hacked . | . . . . Hacks Repelled . | . . . . Allies | -11 -10 -9 -8 -------- Run | Yrd Mat Mat Mat Total Allies . | . . . . Largest Group . | . . . . Highest-Rated Group . | . . . . Highest-Rated Ally . | . . . . Total Orders . | . . . . Ally Attacks . | . . . . Total Damage . | . . . . Kills . | . . . . Allies Corrupted . | . . . . Allies Melted . | . . . . Intel | -11 -10 -9 -8 ------- Run | Yrd Mat Mat Mat Robot Analysis Total . | . . . . Derelict Logs Recovered . | . . . . Drone Launches . | . . . . Drone Recoveries . | . . . . Exploration | -11 -10 -9 -8 ------------- Run | Yrd Mat Mat Mat Turns Passed 1753 | 61 504 653 535 Spaces Moved 983 | 48 362 423 150 Core 29 | 15 . . 14 Treads . | . . . . Legs 954 | 33 362 423 136 Wheels . | . . . . Hover . | . . . . Flight . | . . . . Fastest Speed 50 | 50 120 120 120 Average Speed 132 | 98 120 126 186 Slowest Speed 400 | 120 120 190 400 Overloaded Moves . | . . . . Propulsion Burnouts . | . . . . Robots Hopped . | . . . . Cave-ins Triggered . | . . . . Exploration Rate (%) 25 | 5 51 36 10 Regions Visited 3 Branch Regions . Pre-discovered Areas . | . . . . Known Exits Taken . | . . . . Unknown Exits Taken 3 | 1 1 1 . Scrap Searched . | . . . . Spaces Dug . | . . . . Terrain Destroyed 38 | . . . 38 Melee . | . . . . Projectile . | . . . . AOE 38 | . . . 38 Terrain Rammed . | . . . . Walls Destroyed . | . . . . Machines Disabled . | . . . . Actions | -11 -10 -9 -8 --------- Run | Yrd Mat Mat Mat Total 1247 | 61 403 481 302 Wait 42 | . . . 42 Move 980 | 47 361 422 150 Hop . | . . . . Pick Up 42 | 7 12 7 16 Fast Attach 6 | 1 . 3 2 Attach 23 | 5 2 4 12 Detach 1 | . . . 1 Swap 20 | 1 6 5 8 Drop 23 | . 7 10 6 Fire 71 | . 15 30 26 Melee 26 | . . . 26 Ram 5 | . . . 5 Kick 8 | . . . 8 Crush . | . . . . Escape Stasis . | . . . . Rewire . | . . . . Trap . | . . . . Miscellaneous . | . . . . Route ------- -11/Scrapyard -10/Materials (discovered 2 exits: *Mat / [*Min]) -9/Materials (discovered 2 exits: *Mat / [*Min]) -8/Materials History --------- Turn | Location | Event 3 | -11/Scrapyard | Discovered new exit (range 15) 62 | -11/Scrapyard | Entered Materials 312 | -10/Materials | Build established: Mutant 416 | -10/Materials | Discovered new exit (range 16) 495 | -10/Materials | Discovered new exit (range 7) 566 | -10/Materials | Entered another Materials area 566 | -9/Materials | Evolved 2 slots: Propulsion x1, Utility x1 802 | -9/Materials | Discovered new exit (range 10) 889 | -9/Materials | Repaired Aluminum Leg? 1044 | -9/Materials | Discovered new exit (range 15) 1219 | -9/Materials | Entered another Materials area 1219 | -8/Materials | Evolved 2 slots: Propulsion x1, Utility x1 1559 | -8/Materials | Lost 4 parts (1p2n1u) 1592 | -8/Materials | Garrison activated, responded to threat 1660 | -8/Materials | Core integrity fell below 50% 1727 | -8/Materials | Core integrity fell below 20% 1733 | -8/Materials | Lost 12 parts (2p3n3u4w) 1754 | -8/Materials | Destroyed by G-47 Trooper with Particle Gun Last Messages --------------- 01713_ K-01 Serf collects debris. 01715_ Slammed into H-55 Commando. 01715_ Imp. Ion Engine broken. 01715_ Destabilizing: Short circuit. 01716_ U-05 Engineer destroyed. 01719_ Slammed into H-55 Commando. 01719_ H-55 Commando destroyed. [Achievement: Fist Fight] 01722_ K-01 Serf collects debris. 01722_ U-05 Engineer destroyed. 01726_ K-01 Serf destroyed. 01727_ Acquired Lgt. Nuclear Core. 01733_ Acquired Welding Torch. 01734_ Critical hit (Burn: +37). 01734_ Acquired 10 matter. 01738_ Hrd. Light Armor Plating destroyed. 01744_ K-01 Serf collects debris. 01749_ Acquired Lgt. Treads. 01752_ Welding Torch destroyed. 01754_ K-01 Serf collects debris. Map ----- +----------------------------------------------------+ | | | | | ?????????????????????????????????????????????????? | | ?????????????????????????????????????????????????? | | ?????????????????????????????????????????????????? | | ?????????????????????????????????????????????????? | | ?????????????????????????????????????????????????? | | ?????????????????????????????????????????????????? | | ?????????????????????????????????????????????????? | | ?????????????????????????????????????????????????? | | ?????????????????????????????????????????????????? | | ?????????????????????????????????????????????????? | | ?????????????????????????????????????????????????? | | ?????????????????????????????????????????????????? | | ?????????????????????????????????????????????????? | | ????????????????????????????????????????????????## | | ????????????????????????????????????????????????# | | ??????????????????????????###???????????????????# | | ???????????????????######## ########????????????# | | ???????????????????# ! = # ##########+### | | ???????????????????#!! "" # = | | ???????????????????# T # | | ???????????????????# " " # | | ???????????????????# "" # ########## | | ???????????????????# """ ## ########### | | ???????????????????# @g!=## # #! | | ???????????????????# g%*## # ##!!!! | | ???????????????????########k### " ###### | | ???????????????????????# %%%=! # """ #????? | | ???????????????????????# % %= # """"" #????? | | ???????????????????????# *= # """"" #????? | | ???????????????????????#!!*######## """"" #????? | | ???????????????????????#%=%#??????# """ #????? | | ?????????????????????? #|*%#??????###########????? | | ????????????????????? %+ /?????????????????????? | | ???????????????????? # #?????????????????????? | | ??????????????????? # #?????????????????????? | | ?????????????????? # #?????????????????????? | | ????????????????? % # # ????????????????????? | | ?????????????????##### # # ????????????????????? | | ????????????????? # # ????????????????????? | | ???????????????????# # # ????????????????????? | | ?????????????????????? ? ????????????????????? | | ??????????????????????? ? ????????????????????? | | ???????????????????????? ??????????????????????? | | ?????????????????????????????????????????????????? | | ?????????????????????????????????????????????????? | | ?????????????????????????????????????????????????? | | ?????????????????????????????????????????????????? | | ?????????????????????????????????????????????????? | +----------------------------------------------------+ Best States ------------- Heat Dissipation 31 Energy Generation 14 Energy Capacity 265 Matter Stores 300 Matter Capacity 300 Sight Range 16 Robot Scan Range 14 Terrain Scan Density 10 Armor Coverage 300 Power Shielding 33 Evasion (%) 55 Melee Accuracy 12 Item Schematics ----------------- Hrd. Light Armor Plating | -9/Materials | Scanalyzed Imp. Assault Rifle | -9/Materials | Scanalyzed Robot Schematics ------------------ None Fabricated ------------ Nothing Alien Tech Used ----------------- None Achievements -------------- Fist Fight Troublemaker Challenges ------------ None Game ------ Seed HellfireTachyonGun Manual? 0 Play Time 00:22:26 Cumulative 5.7 hours Start 2024.08.13 @ 22:39:28 End 2024.08.13 @ 23:01:39 Sessions 1 Manual Loads 0 Difficulty Rogue Special Mode None Game No. 11 Rogue 11 Adventurer 0 Explorer 0 Win Type - Total 0 Types 0/0/0/0/0/0/0/0/0 Lore% 7 Gallery% 7 Achievement% 10 Wizard Run 0 Options --------- Layout 2 ASCII 0 Keyboard 0 Movement Mouse Keybinds 0 Fullscreen 2 Font 20/SmallcapsGlow Map View 64x51 Zoom Use 0% Tactical HUD 1 Map Filters NONE Filters NONE Steam 1 RUN: ab1300ad-158e-47bd-bfbe-ed50ecd5a82a